bitfinex-derivatives/quotes_ETHF0:USTF0_20251013
["timestamp","ask_amount","ask_price","bid_price","bid_amount"]
[1760351777532,3.5462,4149.3,4149.1,0.7545]
[1760351777533,0.65427,4149.2,4149.1,0.7545]
[1760351777736,0.774,4149.2,4148.7,0.3239]
[1760351777939,0.43353,4148.6,4148.5,1.29583117]
[1760351778142,0.43353,4148.6,4148.1,3.2078]
[1760351778143,0.86916,4148.3,4148.1,4.50363117]
[1760351778345,0.4356,4148.3,4148.1,3.64323908]
[1760351778643,0.774,4148.3,4148.2,0.2221]
[1760351779139,0.774,4148.3,4148.2,0.4306]
[1760351779342,0.774,4148.3,4148.2,0.7545]
[1760351781640,1.22827,4148.2,4148.1,0.00185908]
[1760351781844,4.43607,4148.2,4148.1,0.00185908]
[1760351782147,7.61151887,4148.2,4148.1,0.00185908]
[1760351782645,1.2284,4147.0,4146.9,0.2124]
[1760351783038,1.2284,4147.0,4146.9,0.5448]
[1760351783643,1.2284,4147.0,4146.9,0.54772839]
[1760351784038,3.6795,4147.5,4146.9,0.76212839]
[1760351784350,1.35984,4147.5,4147.4,0.2124]
[1760351784646,1.35984,4147.5,4146.9,0.00292839]
[1760351784647,0.6631,4147.0,4146.9,0.00292839]
[1760351784842,1.2284,4147.0,4146.9,0.00292839]
[1760351785041,1.2284,4147.0,4146.9,0.21532839]
[1760351785347,1.2284,4147.0,4146.9,0.54772839]
[1760351785849,0.4337,4147.0,4146.9,0.76212839]
[1760351786252,1.2284,4147.0,4146.9,0.76212839]
[1760351787149,0.8882,4147.0,4146.9,0.76212839]
[1760351787352,0.6631,4147.0,4146.9,0.76212839]
[1760351787650,0.4337,4147.0,4146.9,0.76212839]
[1760351789250,1.0033,4147.0,4146.9,0.76212839]
[1760351790042,1.3599,4147.0,4146.9,0.00292839]
[1760351790247,1.3599,4147.0,4146.9,0.21532839]
[1760351791447,1.2284,4147.0,4146.9,0.54772839]
[1760351791650,0.43369,4147.1,4147.0,0.77449]
[1760351791855,0.43369,4147.1,4147.0,1.32129]
[1760351792152,0.43369,4147.2,4147.1,0.76609]
[1760351792450,3.54664514,4147.4,4147.3,0.86047]
[1760351792655,0.43364,4147.6,4147.5,0.98884]
[1760351792954,0.43364,4147.6,4147.5,1.32124]
[1760351793150,3.10374162,4147.7,4147.6,1.19283]
[1760351793353,3.64138,4148.1,4148.0,1.32119]
[1760351793657,3.64138,4148.1,4148.0,0.8876]
[1760351793851,3.64138,4148.1,4148.0,1.32119]
[1760351794352,0.43358,4148.1,4148.0,1.32119]
[1760351795358,1.23064546,4148.6,4148.5,0.5448]
[1760351795554,0.00241546,4148.6,4148.5,0.8876]
[1760351795949,0.6628,4149.9,4149.8,0.4268]
[1760351796159,0.2294,4149.9,4149.8,0.7592]
[1760351796352,3.40268595,4149.9,4149.8,0.7592]
[1760351796660,3.548,4150.3,4149.9,0.43339]
[1760351796859,3.2078,4150.3,4150.2,0.3324]
[1760351797045,3.2078,4150.3,4150.2,0.33424485]
[1760351797046,3.21066517,4150.3,4150.2,0.33424485]
[1760351797245,0.00286517,4150.3,4150.2,0.33424485]
[1760351798052,3.2078,4151.3,4151.2,0.3324]
[1760351798253,0.43323,4151.5,4151.2,0.3324]
[1760351798254,0.3402,4151.9,4151.2,0.3324]
[1760351798650,0.1315,4151.5,4150.6,3.5402]
[1760351798846,0.3402,4150.9,4150.6,3.2078]
[1760351799156,0.77355,4150.3,4150.2,0.00184485]
[1760351799460,3.89801944,4150.3,4150.2,0.00184485]
[1760351799756,0.43335,4150.3,4150.2,0.33424485]
[1760351800953,0.77355,4150.3,4150.2,0.00184485]
[1760351801153,3.8461248,4150.3,4150.2,0.00184485]
[1760351802657,7.0539248,4150.3,4150.2,0.00184485]
[1760351803551,3.2078,4150.3,4150.2,0.33424485]
[1760351803760,3.2078,4150.8,4150.4,0.3324]
[1760351803957,0.00279343,4150.9,4150.6,0.76572]
[1760351804261,0.00279343,4150.9,4150.8,0.3324]
[1760351805251,0.43332,4150.6,4150.2,0.00184485]
[1760351805452,0.77945,4150.3,4150.2,0.00184485]
[1760351805857,3.85791647,4150.3,4150.2,0.32964485]
[1760351806059,52.62230506,4152.0,4150.3,0.3278]
[1760351806060,3.2078,4150.8,4150.3,0.3278]
[1760351806259,3.2078,4151.4,4150.6,0.3278]
[1760351806460,0.4333,4150.8,4150.5,3.3421]
[1760351806761,0.4333,4150.8,4150.6,0.3278]
[1760351807162,0.43332,4150.7,4150.6,0.3278]
[1760351808854,3.2078,4151.4,4150.6,0.3278]
[1760351809057,1.08298,4151.9,4150.8,0.3278]
[1760351809362,0.43327,4151.1,4150.8,0.3278]
[1760351809859,0.43325,4151.3,4150.8,0.3278]
[1760351810263,0.43327,4151.1,4150.8,0.3278]
[1760351810656,1.08297,4151.9,4150.8,0.3278]
[1760351810657,0.43328,4151.0,4150.8,0.3278]
[1760351813265,0.43328,4151.0,4150.2,0.00184485]
[1760351813266,0.75085,4150.3,4150.2,0.00184485]
[1760351813465,3.95865,4150.3,4150.2,0.00184485]
[1760351813765,0.75085,4150.3,4150.2,0.00184485]
[1760351814161,0.75085,4150.3,4150.2,0.33234485]
[1760351814361,0.43335,4150.3,4150.2,0.33234485]
[1760351814658,0.75085,4150.3,4150.2,0.00184485]
[1760351816254,0.43335,4150.3,4150.2,0.33234485]
[1760351816563,0.43334,4150.4,4150.2,0.33234485]
[1760351816968,0.43334,4150.4,4150.3,0.3305]
[1760351817662,0.75084,4150.4,4150.3,0.3305]
[1760351817858,0.3175,4150.3,4150.2,0.00184485]
[1760351820555,0.43334,4150.4,4150.2,0.00184485]
[1760351820762,1.08603343,4150.9,4150.3,0.3305]
[1760351821066,1.08603343,4150.9,4150.2,0.00184485]
[1760351821067,0.43333,4150.5,4150.4,0.3305]
[1760351821461,0.75085,4150.3,4150.2,0.00184485]
[1760351821871,0.43335,4150.3,4150.2,0.33234485]
[1760351824374,0.75085,4150.3,4150.2,0.33234485]
[1760351825466,3.87445276,4150.3,4150.2,0.00184485]
[1760351825867,4.41513878,4150.3,4150.2,0.00184485]
[1760351826163,4.41513878,4150.3,4148.9,3.2078]
[1760351826164,0.75099,4149.0,4148.9,3.2078]
[1760351826362,3.2078,4149.5,4148.9,3.5383]
[1760351826568,3.2078,4150.7,4149.6,0.3305]
[1760351826764,0.43335,4150.4,4150.0,0.1281]
[1760351827064,0.00279343,4150.9,4150.8,0.3305]
[1760351827465,0.00279343,4150.9,4150.8,3.5383]
[1760351828074,0.00279343,4150.9,4150.5,1.29123448]
[1760351828366,0.00279343,4150.9,4150.3,4.93823521]
[1760351828367,0.75082,4150.6,4150.4,1.29123448]
[1760351828573,0.43332,4150.6,4150.5,0.3305]
[1760351829459,0.43608343,4150.9,4150.7,0.4333]
[1760351829667,0.00279343,4150.9,4150.8,3.5383]
[1760351829865,0.00279343,4150.9,4150.8,4.82953448]
[1760351831170,0.00279343,4150.9,4150.8,3.5383]
[1760351835175,3.2078,4152.3,4151.9,0.3305]
[1760351835377,3.2078,4152.3,4151.7,0.7637]
[1760351835672,0.43319,4151.9,4151.8,0.3305]
[1760351836069,0.43321,4151.7,4151.6,3.2078]
[1760351836269,0.43323,4151.5,4151.4,0.3305]
[1760351836465,0.43325,4151.3,4151.2,0.3305]
[1760351836665,0.43322,4151.6,4151.5,0.1281]
[1760351836872,0.43322,4151.6,4151.5,0.4586]
[1760351837674,0.43326,4151.2,4151.1,3.5383]
[1760351837872,0.43326,4151.2,4151.1,4.8320063]
[1760351838276,0.00310806,4151.9,4151.2,0.3305]
[1760351838576,0.43325,4151.3,4151.1,4.9347663]
[1760351838967,0.43323,4151.5,4151.3,0.43324]
[1760351839175,0.43323,4151.5,4151.4,0.3305]
[1760351841679,0.00310806,4151.9,4151.8,0.3405]
[1760351841680,0.43629806,4151.9,4151.8,0.3405]
[1760351841879,0.43629806,4151.9,4151.8,0.7737]
[1760351843587,0.43321,4151.7,4151.6,3.2078]
[1760351843887,0.43324,4151.4,4151.3,1.6342063]
[1760351844083,0.43324,4151.4,4151.3,0.77375]
[1760351844381,0.43323,4151.5,4151.4,0.43322]
[1760351844589,0.43323,4151.5,4151.4,0.77372]
[1760351844786,0.43323,4151.5,4151.4,0.3405]
[1760351844989,0.43326,4151.2,4151.1,3.5483]
[1760351845489,0.76506,4151.2,4151.1,3.5483]
[1760351845689,0.3318,4151.0,4150.8,1.2937063]
[1760351845896,0.76509,4150.9,4150.8,0.3405]
[1760351846287,0.76509,4150.9,4150.6,3.2078]
[1760351846288,0.76511,4150.7,4150.6,3.2078]
[1760351846884,0.76511,4150.7,4150.6,3.5483]
[1760351848499,0.76511,4150.7,4150.6,3.2078]
[1760351849194,0.43334,4150.4,4150.3,1.2937063]
[1760351849392,0.76514,4150.4,4150.3,1.2937063]
[1760351849897,0.76514,4150.4,4150.3,1.6342063]
[1760351850195,1.08328,4150.8,4150.2,1.2937063]
[1760351850196,0.43335,4150.3,4150.2,1.2937063]
[1760351850490,0.43336,4150.2,4150.1,3.5483]
[1760351850687,0.43334,4150.4,4150.3,0.43334]
[1760351850888,0.43334,4150.4,4150.3,0.3405]
[1760351851694,3.1935063,4150.5,4150.3,0.3405]
[1760351851891,0.3318,4151.2,4150.5,0.1287]
[1760351852197,0.43328,4151.1,4151.0,0.4692]
[1760351852599,0.76508,4151.1,4151.0,0.3405]
[1760351852799,0.43329,4150.9,4150.8,0.43329]
[1760351852998,0.43329,4150.9,4150.8,0.77379]
[1760351852999,0.76509,4150.9,4150.8,0.77379]
[1760351853196,0.43329,4150.9,4150.8,0.77379]
[1760351854798,0.43327,4151.2,4151.0,0.1287]
[1760351855003,0.43327,4151.2,4151.1,0.77377]
[1760351855205,0.43327,4151.2,4151.1,0.3405]
[1760351857203,0.4333,4150.8,4150.7,1.2937063]
[1760351857404,0.43331,4150.7,4150.6,1.2937063]
[1760351857704,0.76516,4150.2,4150.1,3.2078]
[1760351858005,0.76516,4150.2,4150.1,3.5483]
[1760351859104,0.76516,4150.2,4150.1,3.2078]
[1760351859414,0.43335,4150.4,4150.3,0.77385]
[1760351859596,0.3318,4150.6,4150.3,0.77385]
[1760351859801,3.5396,4151.6,4150.6,0.3405]
[1760351860105,3.5396,4151.6,4151.0,0.77377]
[1760351860106,0.43327,4151.1,4151.0,0.77377]
[1760351860401,1.08318,4151.1,4150.7,1.29552421]
[1760351860711,0.43331,4150.7,4150.6,0.3405]
[1760351860901,0.43331,4150.7,4150.6,0.77382]
[1760351861104,0.43329,4150.9,4150.8,0.4333]
[1760351861408,0.43329,4150.9,4150.8,3.9816]
[1760351862712,0.43324,4151.4,4151.3,0.43324]
[1760351862914,0.43324,4151.4,4151.3,0.77374]
[1760351863807,3.2078,4151.6,4151.1,1.29531617]
[1760351864011,0.43321,4151.7,4151.6,0.4332]
[1760351864203,0.43629806,4151.9,4151.7,0.4332]
[1760351864409,0.43629806,4151.9,4151.8,0.3405]
[1760351866112,0.74991,4151.7,4151.6,0.3346]
[1760351866309,0.74993,4151.5,4151.3,4.50311617]
[1760351866616,0.74993,4151.5,4151.4,0.3346]
[1760351867113,0.43323,4151.5,4151.4,1.62991617]
[1760351867609,0.43323,4151.5,4151.3,3.64104]
[1760351867610,0.3167,4151.4,4151.3,4.50311617]
[1760351867913,0.74994,4151.4,4151.3,3.5424]
[1760351868210,1.08303,4151.7,4151.1,1.29531617]
[1760351868211,0.43326,4151.2,4151.1,1.29531617]
[1760351868416,0.43329,4150.9,4150.8,4.50311617]
[1760351868611,0.74999,4150.9,4150.8,5.27101617]
[1760351868914,0.43328,4151.0,4150.9,0.43329]
[1760351869107,0.43328,4151.0,4150.9,0.76789]
[1760351869614,0.74998,4151.0,4150.9,0.76789]
[1760351870316,0.74998,4151.0,4150.9,0.3346]
[1760351870614,0.43329,4150.9,4150.8,4.84231617]
[1760351870809,0.77749,4150.9,4150.8,4.84231617]
[1760351871113,0.43328,4151.1,4151.0,0.3392]
[1760351871517,0.77748,4151.0,4150.9,1.29531617]
[1760351871711,0.77749,4150.9,4150.8,5.27561617]
[1760351871917,4.15326625,4151.3,4150.8,5.27561617]
[1760351871918,0.1323,4151.5,4150.9,0.3392]
[1760351872129,0.43328,4151.0,4150.9,0.3392]
[1760351872416,0.77748,4151.0,4150.9,1.63451617]
[1760351873217,0.77748,4151.0,4150.9,1.29531617]
[1760351873719,0.43328,4151.0,4150.9,2.06780617]
[1760351873912,0.43328,4151.0,4150.9,1.63451617]
[1760351874519,0.43326,4151.3,4151.0,0.1273]
[1760351874710,1.08607806,4151.9,4151.2,1.63581773]
[1760351875015,0.43324,4151.4,4151.3,3.98025]
[1760351875407,0.43324,4151.4,4151.3,0.3392]
[1760351876220,0.43324,4151.4,4151.3,0.77245]
[1760351876617,0.43324,4151.4,4151.3,0.3392]
[1760351876914,0.77744,4151.4,4151.3,0.3392]
[1760351877412,0.77745,4151.3,4151.2,1.63581773]
[1760351877914,0.43325,4151.3,4151.2,1.63581773]
[1760351878719,0.43324,4151.4,4151.3,0.43324]
[1760351878913,0.43323,4151.5,4151.4,0.43323]
[1760351879111,0.43323,4151.5,4151.4,0.77243]
[1760351879416,0.43322,4151.7,4151.6,0.3392]
[1760351879614,0.43322,4151.7,4151.6,1.63574967]
[1760351879817,0.77742,4151.7,4151.6,1.63574967]
[1760351880317,0.77742,4151.7,4151.6,1.29654967]
[1760351880816,0.43322,4151.7,4151.6,2.52036967]
[1760351881010,0.65612,4151.7,4151.6,2.08714967]
[1760351881219,1.00032,4151.7,4151.6,2.08714967]
[1760351881415,1.22942,4151.7,4151.6,2.08714967]
[1760351882225,0.125,4151.5,4151.4,1.29654967]
[1760351882416,0.43327,4151.1,4151.0,1.29654967]
[1760351882715,1.53511,4151.4,4150.9,1.29654967]
[1760351882716,1.35448,4151.0,4150.9,1.29654967]
[1760351882905,0.77748,4151.0,4150.9,1.29654967]
[1760351884519,0.77751,4150.7,4150.6,1.29654967]
[1760351885009,0.43333,4150.5,4150.4,1.29654967]
[1760351885315,0.77753,4150.5,4150.4,1.29654967]
[1760351885717,1.22953,4150.5,4150.4,1.29654967]
[1760351886116,1.35453,4150.5,4150.4,1.29654967]
[1760351886420,1.22953,4150.5,4150.4,1.86594967]
[1760351887015,4.50754656,4150.5,4150.4,1.29654967]
[1760351887215,1.22954,4150.4,4150.3,3.2078]
[1760351887517,4.38255656,4150.4,4150.3,3.2078]
[1760351888225,4.38255656,4150.4,4150.0,0.00185417]
[1760351888226,0.77757,4150.1,4150.0,0.00185417]
[1760351888514,3.88248309,4150.1,4150.0,0.00185417]
[1760351888718,0.43347,4149.2,4149.1,3.2078]
[1760351888921,0.43347,4149.2,4148.4,1.29654967]
[1760351888922,0.55854,4148.5,4148.4,1.29654967]
[1760351889217,0.4692,4147.5,4147.4,1.29654967]
[1760351889414,0.125,4147.5,4146.8,1.29654967]
[1760351889612,3.2078,4148.1,4147.1,3.2078]
[1760351889808,0.4336,4148.0,4147.8,0.3392]
[1760351890118,3.16649862,4147.9,4147.8,0.3392]
[1760351890322,3.60009862,4148.0,4147.7,3.547]
[1760351890323,0.43361,4147.8,4147.7,3.547]
[1760351890616,0.43364,4147.6,4147.1,4.50709067]
[1760351890814,3.2078,4147.9,4147.4,0.3392]
[1760351890815,0.3442,4147.5,4147.4,0.3392]
[1760351891014,0.43362,4147.8,4147.5,0.43364]
[1760351891312,0.77782,4147.8,4147.6,0.3392]
[1760351891912,0.43362,4147.8,4147.6,0.3392]
[1760351892211,0.3442,4147.6,4147.1,3.210541]
[1760351892420,0.3442,4147.2,4147.1,0.002741]
[1760351892813,3.52196723,4147.2,4147.1,0.002741]
[1760351896418,0.125,4146.5,4146.1,3.2078]
[1760351896723,0.125,4146.0,4145.6,3.2078]
[1760351896913,0.3442,4145.7,4145.6,3.2078]
[1760351897416,0.3442,4145.7,4145.6,3.21064122]
[1760351898319,0.3442,4145.7,4145.6,3.54984122]
[1760351899114,0.3442,4146.2,4145.7,0.3392]
[1760351899617,1.20927,4147.0,4145.6,4.29525122]
[1760351899618,3.09378733,4146.3,4146.2,0.76328]
[1760351899914,0.3172,4146.8,4146.7,0.76323]
[1760351900326,3.95039542,4146.8,4146.6,3.2078]
[1760351900515,0.3172,4146.7,4146.6,3.2078]
[1760351900821,3.51667542,4146.7,4146.6,3.2078]
[1760351901024,3.51667542,4146.7,4146.6,3.5373]
[1760351901412,3.51667542,4146.7,4146.6,3.2078]
[1760351902620,3.51667542,4146.7,4146.6,3.5373]
[1760351903012,0.3172,4147.1,4147.0,0.4337]
[1760351903415,0.43372,4146.8,4146.6,3.2078]
[1760351903609,0.3172,4146.9,4146.3,0.43377]
[1760351903818,0.3172,4146.2,4146.1,3.2078]
[1760351904321,3.50498961,4146.2,4146.1,3.2078]
[1760351905214,3.50498961,4146.2,4146.1,3.5373]
[1760351905722,0.43377,4146.3,4146.2,0.43378]
[1760351906017,3.60441917,4146.3,4146.2,0.76328]
[1760351906224,3.17064917,4146.3,4146.2,0.76328]
[1760351907317,3.92161917,4146.3,4146.2,0.76328]
[1760351908023,3.92161917,4146.3,4146.1,3.64159]
[1760351908024,0.75098,4146.2,4146.1,3.64159]
[1760351908229,0.3172,4146.2,4146.1,3.97109]
[1760351908620,0.75098,4146.2,4146.1,3.64159]
[1760351909019,0.75098,4146.2,4146.1,3.2078]
[1760351909225,0.3172,4145.7,4145.6,3.64448122]
[1760351909518,3.93567514,4145.7,4145.6,3.21064122]
[1760351911020,3.50184514,4145.7,4145.6,3.64448122]
[1760351911422,3.93567514,4145.7,4145.6,3.64448122]
[1760351911623,3.93567514,4145.7,4145.6,3.97398122]
[1760351912323,3.93567514,4145.7,4145.6,3.64448122]
[1760351913625,3.93567514,4145.7,4145.6,3.21064122]
[1760351914825,0.3172,4146.3,4146.2,0.43378]
[1760351915122,3.50096402,4146.3,4146.1,3.2078]
[1760351915420,0.75102,4145.9,4145.6,0.00284122]
[1760351915622,0.43383,4145.8,4145.6,0.00284122]
[1760351915825,0.75103,4145.7,4145.6,0.00284122]
[1760351916124,3.95205417,4145.7,4145.6,0.00284122]
[1760351916524,3.95205417,4145.7,4145.6,0.43668122]
[1760351916922,3.20102417,4145.7,4145.6,0.76618122]
[1760351917626,3.51822417,4145.7,4145.6,0.76618122]
[1760351918221,3.95205417,4145.7,4145.6,0.43668122]
[1760351918423,3.95205417,4145.7,4145.6,0.00284122]
[1760351918820,3.51822417,4145.7,4145.6,0.43668122]
[1760351919518,3.51822417,4145.7,4145.6,0.76618122]
[1760351920323,3.51822417,4145.7,4145.6,0.43668122]
[1760351920522,3.95205417,4145.7,4145.6,0.00284122]
[1760351920728,4.38355417,4145.7,4145.6,0.00284122]
[1760351920925,4.38355417,4145.7,4145.6,0.43668122]
[1760351921628,3.94972417,4145.7,4145.6,0.43668122]
[1760351921930,3.94972417,4145.7,4145.6,0.98198122]
[1760351922429,3.94972417,4145.7,4145.6,0.43668122]
[1760351922731,4.38355417,4145.7,4145.6,0.43668122]
[1760351922930,3.94972417,4145.7,4145.6,0.65248122]
[1760351923126,0.43378,4146.2,4146.1,0.43378]
[1760351923425,0.129,4146.5,4146.1,0.43378]
[1760351923426,0.43373,4146.8,4146.7,0.43373]
[1760351923633,1.30043625,4146.8,4146.7,0.43373]
[1760351923826,4.41039148,4146.8,4146.7,0.43373]
[1760351925231,3.97666148,4146.8,4146.7,0.75793]
[1760351925418,3.42715523,4146.8,4146.7,0.75793]
[1760351926827,3.42715523,4146.8,4146.7,0.43373]
[1760351928338,3.87485523,4146.8,4146.7,0.43373]
[1760351932231,0.3235,4147.2,4146.9,0.3374]
[1760351932437,0.784,4147.2,4147.1,0.43369]
[1760351932639,0.784,4146.7,4146.6,3.2078]
[1760351932936,0.2303,4146.7,4146.6,4.39894]
[1760351933135,0.784,4147.1,4147.0,0.4337]
[1760351933332,1.21769,4147.1,4147.0,0.4337]
[1760351933636,4.36998451,4147.1,4147.0,0.4337]
[1760351933840,4.36998451,4147.1,4146.6,3.2078]
[1760351933841,1.21773,4146.7,4146.6,3.2078]
[1760351934029,1.21774,4146.6,4146.5,0.43374]
[1760351934433,0.1257,4146.5,4145.9,2.38105967]
[1760351934638,0.2303,4146.1,4146.0,0.7574]
[1760351934841,0.2303,4146.1,4146.0,1.1912]
[1760351935241,3.50030765,4146.4,4146.3,0.43377]
[1760351935444,3.73060765,4146.4,4146.3,1.19117]
[1760351937447,3.96080765,4146.4,4146.3,0.64397]
[1760351937646,4.39456765,4146.4,4146.3,0.64397]
[1760351938146,3.96080765,4146.4,4146.3,0.64397]
[1760351939145,4.39456765,4146.4,4146.3,0.43377]
[1760351939741,3.96080765,4146.4,4146.3,0.64397]
[1760351940056,1.21779,4146.1,4146.0,3.2078]
[1760351940354,4.35439986,4146.1,4146.0,3.2078]
[1760351944150,3.92060986,4146.1,4146.0,3.6416]
[1760351944353,3.3335,4146.5,4146.4,0.64356]
[1760351944354,0.5538,4146.5,4146.4,0.64356]
[1760351944653,0.4605,4146.3,4146.2,0.64398]
[1760351944953,0.784,4146.3,4146.2,0.98138]
[1760351945956,1.21777,4146.3,4146.2,0.43378]
[1760351946555,0.66408,4146.2,4146.1,1.29654967]
[1760351946850,0.3235,4145.7,4145.6,0.00284122]
[1760351947246,3.4066043,4145.7,4145.6,0.00284122]
[1760351949752,0.3235,4145.6,4144.9,3.2078]
[1760351949950,0.3235,4144.9,4144.6,0.43395]
[1760351950151,0.43393,4144.8,4144.6,0.43395]
[1760351950354,3.56658282,4144.8,4144.6,0.43395]
[1760351950658,0.3235,4144.7,4144.6,0.77135]
[1760351950952,0.3235,4144.7,4144.6,0.00174775]
[1760351950953,3.45874792,4144.7,4144.6,0.00174775]
[1760351952551,3.45874792,4144.7,4144.6,0.33914775]
[1760351952750,3.45874792,4144.7,4144.6,0.00174775]
[1760351953250,3.91924792,4144.7,4144.6,0.00174775]
[1760351953554,3.13524792,4144.7,4144.6,0.75914775]
[1760351953752,3.59574792,4144.7,4144.6,0.75914775]
[1760351954145,3.13524792,4144.7,4144.6,0.75914775]
[1760351954542,3.59574792,4144.7,4144.6,0.75914775]
[1760351954744,0.0025951,4144.7,4144.6,0.75914775]
[1760351954945,0.0025951,4144.7,4144.6,0.33914775]
[1760351958346,0.0025951,4144.7,4144.6,0.75914775]
[1760351961852,0.0025951,4144.7,4144.6,1.19309775]
[1760351962255,0.2122951,4144.7,4144.6,1.19309775]
[1760351962662,0.4321951,4144.7,4144.6,1.19309775]
[1760351964260,0.0025951,4144.7,4144.6,1.19309775]
[1760351964856,0.4321951,4144.7,4144.6,1.19309775]
[1760351965059,0.7634951,4144.7,4144.6,1.19309775]
[1760351965261,0.8661351,4144.7,4144.6,0.75914775]
[1760351965658,0.6462351,4144.7,4144.6,1.19309775]
[1760351966063,0.8661351,4144.7,4144.6,1.19309775]
[1760351966766,0.8661351,4144.7,4144.6,2.48960685]
[1760351967063,0.0025951,4144.7,4144.6,2.48960685]
[1760351967265,0.0025951,4144.7,4144.6,1.19309775]
[1760351968452,3.2078,4146.3,4146.2,0.2112]
[1760351968660,3.2078,4146.3,4146.2,1.19268]
[1760351968661,3.4175,4146.3,4146.2,1.19268]
[1760351968854,3.2078,4146.3,4146.2,1.19268]
[1760351969459,0.4296,4145.9,4145.8,0.5498]
[1760351970463,0.7609,4145.9,4145.8,0.5498]
[1760351970664,0.7609,4145.9,4145.8,0.3386]
[1760351971565,0.4296,4145.9,4145.8,0.7589]
[1760351974264,0.7609,4145.9,4145.8,0.5498]
[1760351974863,0.4296,4145.9,4145.8,0.98362]
[1760351975266,0.86341,4145.9,4145.8,0.98362]
[1760351976165,0.4296,4145.9,4145.8,0.98362]
[1760351976470,0.4296,4145.9,4145.8,1.19272]
[1760351976762,3.21059763,4146.3,4146.2,0.64498]
[1760351976964,0.00279763,4146.3,4146.2,1.19268]
[1760351978455,3.2078,4147.3,4147.2,0.43368]
[1760351978655,0.2097,4147.6,4147.5,0.98514]
[1760351978861,0.2097,4147.9,4147.8,0.64481]
[1760351979166,0.2097,4147.9,4147.8,1.19251]
[1760351979364,0.2097,4148.2,4148.1,1.19248]
[1760351979756,3.39219033,4148.2,4148.1,0.7589]
[1760351984071,3.18249033,4148.2,4148.1,0.7589]
[1760351984372,0.00203866,4148.2,4148.1,0.7589]
[1760351986367,0.21173866,4148.2,4148.1,0.7589]
[1760351986768,0.00203866,4148.2,4148.1,0.7589]
[1760351987267,0.43560866,4148.2,4148.1,0.7589]
[1760351989176,0.00203866,4148.2,4148.1,1.19248]
[1760351989472,0.43560866,4148.2,4148.1,1.19248]
[1760351989670,0.00203866,4148.2,4148.1,1.19248]
[1760351992470,3.64126,4149.3,4149.2,0.7623]
[1760351992774,0.43346,4149.3,4149.2,0.7623]
[1760351993276,0.43346,4149.3,4149.2,1.19577]
[1760351993572,0.43589715,4149.3,4149.2,1.19577]
[1760351993775,0.00243715,4149.3,4149.2,1.19577]
[1760351998379,0.8706,4148.9,4148.8,0.5422]
[1760351998578,0.8706,4148.9,4148.8,0.7623]
[1760351998777,0.4335,4148.9,4148.8,0.7623]
[1760351999374,3.21023715,4149.3,4149.1,0.7623]
[1760351999375,0.43348,4149.2,4149.1,0.7623]
[1760352000679,1.20628,4149.2,4149.1,0.5422]
[1760352000981,0.43353,4148.6,4148.5,0.89]
[1760352001476,0.43589715,4149.3,4149.2,0.7623]
[1760352004377,0.87299715,4149.3,4149.2,0.7623]
[1760352004676,1.20869715,4149.3,4149.2,0.5422]
[1760352004872,0.43589715,4149.3,4149.2,0.7623]
[1760352007276,0.64749715,4149.3,4149.2,0.7623]
[1760352007482,0.43589715,4149.3,4149.2,0.7623]
[1760352009383,0.00243715,4149.3,4149.2,0.7623]
[1760352009783,1.08332,4150.6,4149.1,3.64127]
[1760352009784,0.43331,4150.7,4150.6,0.7623]
[1760352010786,0.43553829,4150.7,4150.6,0.76529183]
[1760352011584,0.64713829,4150.7,4150.6,0.76529183]
[1760352012586,0.43553829,4150.7,4150.6,0.76529183]
[1760352012781,0.00222829,4150.7,4150.6,0.76529183]
[1760352015787,0.43553829,4150.7,4150.6,0.76529183]
[1760352015986,0.00222829,4150.7,4150.6,0.76529183]
[1760352016184,0.00222829,4150.7,4150.6,1.19861183]
[1760352016588,3.2078,4151.8,4151.7,0.4506]
[1760352016888,3.641,4151.8,4151.7,0.7623]
[1760352017486,3.6432368,4151.8,4151.7,0.7623]
[1760352018289,4.0803368,4151.8,4151.7,0.7623]
[1760352018492,4.0803368,4151.8,4151.1,3.2078]
[1760352018493,0.43322,4151.6,4151.1,3.2078]
[1760352018790,1.20606,4151.2,4151.1,0.5422]
[1760352019190,0.87036,4151.2,4151.1,0.5422]
[1760352019591,0.87036,4151.2,4151.1,0.7623]
[1760352019789,0.64486,4151.2,4151.1,0.7623]
[1760352020184,1.19376,4151.2,4151.1,0.5422]
[1760352020586,0.86966,4151.2,4151.1,0.77]
[1760352020786,0.64916,4151.2,4151.1,0.77]
[1760352021191,0.43326,4151.2,4151.1,0.77]
[1760352022193,0.64916,4151.2,4151.1,0.77]
[1760352022493,0.87396,4151.2,4151.1,0.77]
[1760352023093,0.64916,4151.2,4151.1,0.77]
[1760352024595,0.43326,4151.2,4151.1,0.77]
[1760352028199,0.64916,4151.2,4151.1,0.77]
[1760352028400,0.87396,4151.2,4151.1,0.77]
[1760352028598,1.19806,4151.2,4151.1,0.5422]
[1760352028901,0.64916,4151.2,4151.1,0.77]
[1760352029295,0.43326,4151.2,4151.1,0.77]
[1760352029804,0.43322,4151.6,4151.5,0.8851]
[1760352029997,0.0022368,4151.8,4151.7,0.87831]
[1760352030302,0.43311,4152.6,4152.5,0.8851]
[1760352031194,0.43311,4152.7,4152.6,0.7587]
[1760352031594,0.43547013,4152.7,4152.6,0.7587]
[1760352033005,0.87617013,4152.7,4152.6,0.7587]
[1760352033906,0.43547013,4152.7,4152.6,0.7587]
[1760352034707,0.65137013,4152.7,4152.6,0.7587]
[1760352037799,0.4407,4152.3,4152.2,0.4451]
[1760352038109,0.64904,4152.3,4152.2,0.7587]
[1760352038309,0.43314,4152.3,4152.2,0.7587]
[1760352038808,0.00236013,4152.7,4152.6,0.4451]
[1760352038999,0.43305,4153.2,4152.9,0.43308]
[1760352039206,0.43304,4153.3,4153.2,0.7587]
[1760352039405,3.2078,4153.8,4153.2,1.19175]
[1760352039609,3.2078,4153.8,4153.7,0.7587]
[1760352039610,3.64079,4153.8,4153.7,0.7587]
[1760352040112,3.64252613,4153.8,4153.7,0.76171146]